Workbook

Sheet Лист1
A1: Школа | C1: МКОУ "Малокозыревская ООШ" | F1: Утвердил: | G1: должность | H1: Директор школы
A2: Типовое примерное меню приготавливаемых блюд | G2: фамилия | H2: Нухбегов К.Н.
A3: Возрастная категория | E3: 7-11 лет | G3: дата | H3: 1 | I3: 10 | J3: 2023
H4: день | I4: месяц | J4: год
A5: Неделя | B5: День недели | C5: Прием пищи | D5: Раздел меню | E5: Блюда | F5: Вес блюда, г | G5: Белки | H5: Жиры | I5: Углеводы | J5: Калорийность | K5: № рецептуры | L5: Цена
A6: 1 | B6: 1 | C6: Завтрак | D6: гор.блюдо | E6: Суп молочный с рисом | F6: 200 | G6: 132.4 | H6: 4.82 | I6: 3.21 | J6: 30.11 | K6: 35 | L6: 14.635
D7: закуска | E7: Яйцо отварное | F7: 40 | G7: 63 | H7: 5.08 | I7: 4.6 | J7: 0.28 | K7: 8 | L7: 8.013
D8: гор.напиток | E8: Чай с сахаром | F8: 200 | G8: 0 | H8: 0.05 | I8: 4.11 | J8: 0.58 | K8: 20 | L8: 1.862
E9: Йогурт | F9: 115 | G9: 28 | H9: 0 | I9: 0 | J9: 13.45 | L9: 32.2
E10: Кексы | F10: 33.33 | G10: 60.5 | H10: 4.33 | I10: 2.01 | J10: 11.98 | L10: 3.68
D11: фрукты | E11: яблоки | F11: 100 | G11: 8.4 | H11: 0.1 | I11: 0.38 | J11: 6.01 | L11: 9
D12: хлеб | E12: Хлеб пшеничный | F12: 40 | G12: 40.92 | H12: 0.55 | I12: 0.55 | J12: 13.64 | L12: 2.32
D14: итого | F14: =SUM(F6:F13) -> 728.33 | G14: =SUM(G6:G13) -> 333.22 | H14: 14.93 | I14: 14.86 | J14: 76.05 | L14: =SUM(L6:L13) -> 71.71
A15: =A6 -> 1 | B15: =B6 -> 1 | C15: Обед | D15: закуска
D16: 1 блюдо | E16: Борщ с капустой и картофелем | F16: 200 | G16: 1.45 | H16: 12.85 | I16: 21.2 | J16: 184.3 | K16: 27 | L16: 16.383
D17: 2 блюдо | E17: Каша ячневая рассыпчатая с люля | F17: 120\45 | G17: 13.06 | H17: 11.8 | I17: 36.1 | J17: 287 | K17: 9 | L17: 38.617
D18: напиток | E18: Чай с сахаром | F18: 200 | G18: 0 | H18: 0.05 | I18: 4.11 | J18: 0.58 | K18: 20 | L18: 1.71
D19: хлеб | E19: Хлеб пшеничный | F19: 40 | G19: 3.92 | H19: 0.48 | I19: 19.88 | J19: 152.32 | L19: 2.32
D20: фрукты | E20: яблоки | F20: 100 | G20: 0.55 | H20: 0.55 | I20: 13.64 | J20: 40.92 | L20: 9
E21: Печенье | F21: 16 | G21: 1.1 | H21: 0.75 | I21: 10 | J21: 20.65 | L21: 3.68
D24: итого | F24: =SUM(F15:F23) -> 556 | G24: =SUM(G15:G23) -> 20.08 | H24: 26.48 | I24: 104.93 | J24: 685.77 | L24: =SUM(L15:L23) -> 71.71
A25: =A6 -> 1 | B25: =B6 -> 1 | C25: Итого за день: | F25: =F14+F24 -> 1284.33 | G25: =G14+G24 -> 353.3 | H25: 41.41 | I25: 119.79 | J25: 761.82 | L25: =L14+L24 -> 143.42
A26: 1 | B26: 2 | C26: Завтрак | D26: гор.блюдо | E26: Макароны отварные | F26: 125 | G26: 5.52 | H26: 4.52 | I26: 26.45 | J26: 132.5 | K26: 10 | L26: 4.7314
E27: Биточки из курицы | F27: 45 | G27: 9.18 | H27: 11.93 | I27: 6.49 | J27: 118.98 | K27: 45 | L27: 26.665
D28: напиток | E28: Сок осветленный | F28: 200 | G28: 1.06 | H28: 0 | I28: 12.83 | J28: 85.11 | K28: 49 | L28: 15.895
E29: Кексы | F29: 33.33 | G29: 0.1 | H29: 0.38 | I29: 6.01 | J29: 8.4 | L29: 13.9986
D30: фрукты | E30: Яблоки | F30: 90 | G30: 0.5 | H30: 0.5 | I30: 12.28 | J30: 36.83 | L30: 8.1
D31: хлеб | E31: Хлеб пшеничный | F31: 40 | G31: 3.92 | H31: 0.48 | I31: 19.88 | J31: 152.32 | L31: 2.32
D33: итого | F33: =SUM(F26:F32) -> 533.33 | G33: =SUM(G26:G32) -> 20.28 | H33: =SUM(H26:H32) -> 17.81 | I33: =SUM(I26:I32) -> 83.94 | J33: =SUM(J26:J32) -> 534.14 | L33: 71.71
A34: =A26 -> 1 | B34: =B26 -> 2 | C34: Обед | D34: закуска
D35: 1 блюдо | E35: Суп гороховый вегит. | F35: 200 | G35: 3.19 | H35: 3.24 | I35: 8.86 | J35: 120.5 | K35: 56 | L35: 3.9874
D36: 2 блюдо | E36: Пюре картофельное с люля | F36: 210\45 | G36: 13.30 | H36: 10.3 | I36: 34.3 | J36: 146.88 | K36: 39 | L36: 41.594
D37: хлеб | E37: Хлеб пшеничный | F37: 40 | G37: 3.92 | H37: 0.48 | I37: 19.88 | J37: 152.32 | L37: 2.32
E38: Кексы | F38: 33.33 | G38: 0.1 | H38: 0.38 | I38: 6.01 | J38: 8.4 | L38: 13.9986
D39: гор.напиток | E39: Чай с сахаром | F39: 200 | G39: 0 | H39: 0 | I39: 13.45 | J39: 28 | K39: 20 | L39: 1.71
D40: фрукты | E40: Яблоки | F40: 90 | G40: 0.5 | H40: 0.5 | I40: 12.28 | J40: 36.83 | L40: 8.1
D43: итого | F43: =SUM(F34:F42) -> 563.33 | G43: =SUM(G34:G42) -> 7.71 | H43: =SUM(H34:H42) -> 14.9 | I43: =SUM(I34:I42) -> 94.78 | J43: =SUM(J34:J42) -> 346.05 | L43: 71.71
A44: =A26 -> 1 | B44: =B26 -> 2 | C44: Итого за день: | F44: =F33+F43 -> 1096.66 | G44: =G33+G43 -> 27.99 | H44: =H33+H43 -> 32.71 | I44: =I33+I43 -> 178.72 | J44: =J33+J43 -> 880.19 | L44: 143.42
A45: 1 | B45: 3 | C45: Завтрак | D45: гор.блюдо | E45: Каша гречневая рассыпчатая с тефтелями | F45: 126\45 | G45: 19 | H45: 9.87 | I45: 16.83 | J45: 286 | K45: 9 | L45: 36.619
D46: закуска | E46: Салат из капусты с горошком | F46: 47 | G46: 1.09 | H46: 2.13 | I46: 3.08 | J46: 36.1 | K46: 43 | L46: 4.751
D47: напиток | E47: Сок осветленный | F47: 196 | G47: 1.03 | H47: 0 | I47: 12.55 | J47: 83.36 | L47: 16.15
E48: Кексы | F48: 33.33 | G48: 0.1 | H48: 0.38 | I48: 6.01 | J48: 8.4 | L48: 3.68
D49: фрукты | E49: Яблоко | F49: 95 | G49: 0.47 | H49: 0.47 | I49: 11.7 | J49: 37.44 | L49: 8.19
D50: хлеб бел. | E50: Хлеб пшеничный | F50: 40 | G50: 3.92 | H50: 0.48 | I50: 19.88 | J50: 152.32 | L50: 2.32
D52: итого | F52: =SUM(F45:F51) -> 411.33 | G52: =SUM(G45:G51) -> 25.61 | H52: =SUM(H45:H51) -> 13.33 | I52: =SUM(I45:I51) -> 70.05 | J52: =SUM(J45:J51) -> 603.62 | L52: 71.71
A53: =A45 -> 1 | B53: =B45 -> 3 | C53: Обед | D53: закуска
D54: 1 блюдо | E54: Щи из капусты с курицей | F54: 250 | G54: 2 | H54: 5 | I54: 11 | J54: 100 | K54: 54 | L54: 16.497
D55: 2 блюдо | E55: Макароны отварные с тефтелями | F55: 125\45 | G55: 13 | H55: 11.73 | I55: 34.3 | J55: 246 | K55: 10 | L55: 38.351
D56: хлеб бел. | E56: Хлеб пшеничный | F56: 40 | G56: 3.92 | H56: 0.48 | I56: 19.88 | J56: 152.32 | L56: 2.32
E57: Печенье | F57: 16 | G57: 1.1 | H57: 0.75 | I57: 10 | J57: 20.65 | L57: 3.68
D58: гор.напиток | E58: Чай с сахаром | F58: 200 | G58: 0 | H58: 0 | I58: 13.45 | J58: 28 | K58: 20 | L58: 1.862
D59: фрукты | E59: Яблоки | F59: 90 | G59: 0.5 | H59: 0.5 | I59: 12.28 | J59: 36.83 | L59: 9
D62: итого | F62: =SUM(F53:F61) -> 596 | G62: =SUM(G53:G61) -> 20.52 | H62: =SUM(H53:H61) -> 18.46 | I62: =SUM(I53:I61) -> 100.91 | J62: =SUM(J53:J61) -> 583.8 | L62: 71.71
A63: =A45 -> 1 | B63: =B45 -> 3 | C63: Итого за день: | F63: =F52+F62 -> 1007.33 | G63: =G52+G62 -> 46.13 | H63: =H52+H62 -> 31.79 | I63: =I52+I62 -> 170.96 | J63: =J52+J62 -> 1187.42 | L63: 143.42
A64: 1 | B64: 4 | C64: Завтрак | D64: гор.блюдо | E64: Каша гречневая с куриной котлетой | F64: 150\45 | G64: 20.62 | H64: 8.37 | I64: 17.77 | J64: 303 | K64: 9 | L64: 32.668
D65: закуска | E65: Яйцо отварное | F65: 40 | G65: 5.08 | H65: 4.6 | I65: 0.28 | J65: 63 | K65: 8 | L65: 8.01
D66: хлеб бел. | E66: Хлеб пшеничный | F66: 40 | G66: 152.32 | H66: 152.32 | I66: 152.32 | J66: 152.32 | L66: 2.32
D67: напиток | E67: Чай с сахаром | F67: 200 | G67: 0 | H67: 0 | I67: 13.45 | J67: 28 | K67: 20 | L67: 1.862
D68: фрукты | E68: Яблоко | F68: 90 | G68: 0.48 | H68: 0.48 | I68: 11.78 | J68: 35.34 | L68: 9
E69: Мини рулеты (бисквитные) | F69: 35 | G69: 1.4 | H69: 6.65 | I69: 19.95 | J69: 147 | L69: 17.85
D71: итого | F71: =SUM(F64:F70) -> 405 | G71: =SUM(G64:G70) -> 179.9 | H71: =SUM(H64:H70) -> 172.42 | I71: =SUM(I64:I70) -> 215.55 | J71: =SUM(J64:J70) -> 728.66 | L71: 71.71
A72: =A64 -> 1 | B72: =B64 -> 4 | C72: Обед | D72: закуска | E72: Йогурт | F72: 115 | G72: 4.33 | H72: 2.01 | I72: 11.98 | J72: 60.5 | L72: 32.2
D73: 1 блюдо | E73: Вареник со сметаной | F73: 120 | G73: 11.27 | H73: 10.7 | I73: 17.34 | J73: 284.13 | K73: 42 | L73: 21.66
D74: хлеб бел. | E74: Хлеб пшеничный | F74: 40 | G74: 3.92 | H74: 0.48 | I74: 19.88 | J74: 152.32 | L74: 2.32
D75: гор.напиток | E75: Чай с сахаром | F75: 200 | G75: 0 | H75: 0 | I75: 13.45 | J75: 28 | K75: 20 | L75: 1.71
D76: фрукты | E76: Яблоки | F76: 90 | G76: 0.5 | H76: 0.5 | I76: 12.28 | J76: 36.83 | L76: 8.82
E77: Вафли | F77: 20 | G77: 0.82 | H77: 5.4 | I77: 12 | J77: 61.25 | L77: 5
D81: итого | F81: =SUM(F72:F80) -> 585 | G81: =SUM(G72:G80) -> 20.84 | H81: =SUM(H72:H80) -> 19.09 | I81: =SUM(I72:I80) -> 86.93 | J81: =SUM(J72:J80) -> 623.03 | L81: 71.71
A82: =A64 -> 1 | B82: =B64 -> 4 | C82: Итого за день: | F82: =F71+F81 -> 990 | G82: =G71+G81 -> 200.74 | H82: =H71+H81 -> 191.51 | I82: =I71+I81 -> 302.48 | J82: =J71+J81 -> 1351.69 | L82: 143.42
A83: 1 | B83: 5 | C83: Завтрак | D83: гор.блюдо | E83: Говяжий люля-кебаб с подливой | F83: 100\45 | G83: 9 | H83: 8 | I83: 19.57 | J83: 199 | K83: 55 | L83: 35.491
D84: 2 блюдо | E84: Картофельное пюре | F84: 210 | G84: 9.59 | H84: 17.68 | I84: 83.86 | J84: 348.29 | K84: 2 | L84: 10.0004
D85: гор.напиток | E85: Чай с сахаром | F85: 200 | G85: 0 | H85: 0 | I85: 13.45 | J85: 28 | K85: 20 | L85: 1.71
E86: Кексы | F86: 33 | G86: 0.1 | H86: 0.38 | I86: 6.01 | J86: 8.4 | L86: 13.9986
D87: фрукты | E87: Яблоко | F87: 100 | G87: 0.53 | H87: 0.53 | I87: 12.46 | J87: 37.4 | L87: 8.19
D88: хлеб | E88: Хлеб пшеничный | F88: 40 | G88: 3.92 | H88: 0.48 | I88: 19.88 | J88: 152.32 | L88: 2.32
D90: итого | F90: =SUM(F83:F89) -> 583 | G90: =SUM(G83:G89) -> 23.14 | H90: =SUM(H83:H89) -> 27.07 | I90: =SUM(I83:I89) -> 155.23 | J90: =SUM(J83:J89) -> 773.41 | L90: 71.71
A91: =A83 -> 1 | B91: =B83 -> 5 | C91: Обед | D91: закуска
D92: 1 блюдо | E92: Суп харчо с курицей | F92: 250 | G92: 6.89 | H92: 1.9 | I92: 6.58 | J92: 85.79 | K92: 36 | L92: 13.48
D93: 2 блюдо | E93: Макароны отварные с куриной котлетой | F93: 125\45 | G93: 17.67 | H93: 14.67 | I93: 36.89 | J93: 132.5 | K93: 10 | L93: 31.2014
D94: напиток | E94: Чай с сахаром | F94: 200 | G94: 0 | H94: 0 | I94: 13.45 | J94: 28 | K94: 20 | L94: 1.71
D95: хлеб бел. | E95: Хлеб пшеничный | F95: 40 | G95: 3.92 | H95: 0.48 | I95: 19.88 | J95: 152.32 | L95: 2.32
D96: фрукты | E96: Яблоки | F96: 90 | G96: 0.5 | H96: 0.5 | I96: 12.28 | J96: 36.83 | L96: 9
E97: Кексы | F97: 33.33 | G97: 0.1 | H97: 0.38 | I97: 6.01 | J97: 8.4 | L97: 13.9986
D100: итого | F100: =SUM(F91:F99) -> 580 | G100: =SUM(G91:G99) -> 29.08 | H100: =SUM(H91:H99) -> 17.93 | I100: =SUM(I91:I99) -> 95.09 | J100: =SUM(J91:J99) -> 443.84 | L100: 71.71
A101: =A64 -> 1 | B101: 5 | C101: Итого за день: | F101: =F71+F81 -> 990 | G101: =G71+G81 -> 200.74 | H101: =H71+H81 -> 191.51 | I101: =I71+I81 -> 302.48 | J101: =J71+J81 -> 1351.69 | L101: =L71+L81 -> 143.42
A102: 1 | B102: 6 | C102: Завтрак | D102: гор.блюдо
D104: гор.напиток
D105: хлеб
D106: фрукты
D109: итого | F109: =SUM(F102:F108) -> 0 | G109: =SUM(G102:G108) -> 0 | H109: 0 | I109: 0 | J109: 0 | L109: =SUM(L102:L108) -> 0
A110: 1 | B110: =B102 -> 6 | C110: Обед | D110: закуска
D111: 1 блюдо | E111: Суп молочный с рисом | F111: 220 | G111: 4.82 | H111: 3.21 | I111: 30.11 | J111: 132.4 | K111: 35 | L111: 11.793
D112: 2 блюдо | E112: Каша пшеничная с куриной котлетой | F112: 125 \45 | G112: 8.2 | H112: 8.42 | I112: 26.45 | J112: 276 | K112: 9 | L112: 32.8884
D113: хлеб бел. | E113: Хлеб пшеничный | F113: 40 | G113: 3.92 | H113: 0.48 | I113: 19.88 | J113: 152.32 | L113: 2.32
D114: напиток | E114: Чай с сахаром | F114: 200 | G114: 0 | H114: 0 | I114: 13.45 | J114: 28 | K114: 20 | L114: 1.71
D115: хлеб бел. | E115: Кексы | F115: 33.33 | G115: 15.24 | H115: 1 | I115: 21 | J115: 34.45 | L115: 13.9986
E116: Яблоко | F116: 108 | G116: 0.1 | H116: 0.38 | I116: 6.01 | J116: 8.4 | L116: 9
D119: итого | F119: =SUM(F110:F118) -> 601.33 | G119: =SUM(G110:G118) -> 32.28 | H119: 13.49 | I119: 116.9 | J119: 631.57 | L119: =SUM(L110:L118) -> 71.71
A120: =A83 -> 1 | B120: 6 | C120: Итого за день: | F120: =F90+F100 -> 1163 | G120: =G90+G100 -> 52.22 | H120: =H90+H100 -> 45 | I120: =I90+I100 -> 250.32 | J120: =J90+J100 -> 1217.25 | L120: =L90+L100 -> 143.42
A121: 2 | B121: 1 | C121: Завтрак | D121: гор.блюдо | E121: Плов с курицей | F121: 225 | G121: 25.95 | H121: 23.76 | I121: 26.55 | J121: 425.18 | K121: 4 | L121: 18.041
D122: хлеб | E122: Хлеб пшеничный с маслом | F122: 40 | G122: 3.92 | H122: 0.48 | I122: 19.88 | J122: 152.32 | L122: 2.32
D123: закуска | E123: Яйцо отварное | F123: 40 | G123: 5.08 | H123: 4.6 | I123: 0.28 | J123: 63 | K123: 8 | L123: 8.014
D124: фрукты | E124: Яблоки | F124: 99 | G124: 0.55 | H124: 0.55 | I124: 13.64 | J124: 40.92 | L124: 8.91
E125: Мини рулеты (бисквитные) | F125: 35 | G125: 1.4 | H125: 6.65 | I125: 19.95 | J125: 147 | L125: 17.85
D126: напиток | E126: Сок осветленный | F126: 195 | G126: 1.06 | H126: 0 | I126: 12.83 | J126: 85.11 | L126: 16.575
D128: итого | F128: =SUM(F121:F127) -> 634 | G128: =SUM(G121:G127) -> 37.96 | H128: 36.04 | I128: 93.13 | J128: 913.53 | L128: =SUM(L121:L127) -> 71.71
A129: =A121 -> 2 | B129: =B121 -> 1 | C129: Обед | D129: закуска
D130: 1 блюдо | E130: Борщ с капустой и картофелем | F130: 200 | G130: 1.45 | H130: 12.85 | I130: 21.2 | J130: 184.3 | K130: 27 | L130: 6.0505
D131: 2 блюдо | E131: Каша ячневая рассыпчатая с говяжьей котлетой | F131: 120\45 | G131: 13.03 | H131: 11.08 | I131: 36.01 | J131: 189 | K131: 9 | L131: 38.5795
D132: напиток | E132: Сок осветленный | F132: 196 | G132: 1.06 | H132: 0 | I132: 12.83 | J132: 85.11 | L132: 16.66
D133: хлеб бел. | E133: Хлеб пшеничный | F133: 40 | G133: 3.92 | H133: 0.48 | I133: 19.88 | J133: 152.32 | L133: 2.32
D134: фрукты | E134: Яблоки | F134: 90 | G134: 0.55 | H134: 0.55 | I134: 13.64 | J134: 40.92 | L134: 8.1
D138: итого | F138: =SUM(F129:F137) -> 526 | G138: =SUM(G129:G137) -> 20.01 | H138: 24.96 | I138: 103.56 | J138: 651.65 | L138: =SUM(L129:L137) -> 71.71
A139: =A121 -> 2 | B139: =B121 -> 1 | C139: Итого за день: | F139: =F128+F138 -> 1160 | G139: =G128+G138 -> 57.97 | H139: =H128+H138 -> 61 | I139: =I128+I138 -> 196.69 | J139: =J128+J138 -> 1565.18 | L139: =L128+L138 -> 143.42
A140: 2 | B140: 2 | C140: Завтрак | D140: гор.блюдо | E140: Гуляш из грудки птицы | F140: 90 | G140: 10.51 | H140: 9.99 | I140: 16.19 | J140: 265.19 | K140: 46 | L140: 19.289
D141: 2 блюдо | E141: Макаронные изделия отварные с маслом | F141: 125\40 | G141: 5.52 | H141: 4.52 | I141: 26.45 | J141: 132.5 | K141: 10 | L141: 4.8114
D142: хлеб | E142: Хлеб пшеничный с сыром | F142: 40 | G142: 5.76 | H142: 2.4 | I142: 19.53 | J142: 177 | L142: 2.32
E143: Кексы | F143: 33.33 | G143: 1.08 | H143: 0 | I143: 13.01 | J143: 86.34 | L143: 13.9986
D144: фрукты | E144: Яблоки | F144: 100 | G144: 0.55 | H144: 0.55 | I144: 13.64 | J144: 40.92 | L144: 9
D145: напиток | E145: Сок фруктовый | F145: 200 | G145: 1.06 | H145: 0 | I145: 12.83 | J145: 85.11 | L145: 17
D146: закуска | E146: Салат из капусты с горошком | F146: 57 | G146: 1.31 | H146: 2.57 | I146: 3.71 | J146: 43.49 | K146: 43 | L146: 5.291
D147: итого | F147: =SUM(F140:F146) -> 520.33 | G147: =SUM(G140:G146) -> 25.79 | H147: 20.03 | I147: 105.36 | J147: 830.55 | L147: =SUM(L140:L146) -> 71.71
A148: =A140 -> 2 | B148: =B140 -> 2 | C148: Обед | D148: закуска
D149: 1 блюдо | E149: Суп молочный с рисом | F149: 200 | G149: 4.82 | H149: 3.21 | I149: 30.11 | J149: 132.4 | K149: 35 | L149: 14.449
D150: хлеб бел. | E150: Хлеб пшеничный | F150: 40 | G150: 3.92 | H150: 0.48 | I150: 19.88 | J150: 152.32 | L150: 2.32
D151: 2 блюдо | E151: Каша пшеничная с тефтелями из говядины | F151: 120\46 | G151: 1.08 | H151: 0 | I151: 13.01 | J151: 86.34 | K151: 9 | L151: 39.231
D152: напиток | E152: Чай с сахаром | F152: 40 | G152: 0 | H152: 0 | I152: 13.45 | J152: 28 | K152: 20 | L152: 1.71
E153: Вафли | F153: 20 | G153: 0.82 | H153: 5.4 | I153: 12 | J153: 61.25 | L153: 5
D154: фрукты | E154: Яблоко | F154: 100 | G154: 0.55 | H154: 0.55 | I154: 13.64 | J154: 40.92 | L154: 9
D157: итого | F157: =SUM(F148:F156) -> 400 | G157: =SUM(G148:G156) -> 11.19 | H157: 9.64 | I157: 102.09 | J157: 501.23 | L157: =SUM(L148:L156) -> 71.71
A158: =A140 -> 2 | B158: =B140 -> 2 | C158: Итого за день: | F158: =F147+F157 -> 920.33 | G158: =G147+G157 -> 36.98 | H158: =H147+H157 -> 29.67 | I158: =I147+I157 -> 207.45 | J158: =J147+J157 -> 1331.78 | L158: 143.42
A159: 2 | B159: 3 | C159: Завтрак | D159: гор.блюдо | E159: Пюре с рыбной котлетой | F159: 210\45 | G159: 22 | H159: 27 | I159: 120 | J159: 488.69 | K159: 39 | L159: 36.393
D160: хлеб | E160: Хлеб пшеничный | F160: 40 | G160: 3.92 | H160: 0.48 | I160: 19.88 | J160: 152.32 | L160: 2.32
D161: гор.напиток | E161: Чай с сахаром | F161: 200 | G161: 1.06 | H161: 0 | I161: 12.83 | J161: 85.11 | K161: 20 | L161: 1.71
D162: фрукты | E162: Яблоки | F162: 96 | G162: 0.5 | H162: 0.5 | I162: 12.4 | J162: 37.2 | L162: 9
E163: Мини рулеты (бисквитные) | F163: 35 | G163: 1.4 | H163: 6.65 | I163: 19.95 | J163: 147 | L163: 17.85
D164: закуска | E164: Салат картофельный с зеленным горошком | F164: 60 | G164: 1.8 | H164: 2.88 | I164: 6.06 | J164: 57.18 | K164: 59 | L164: 4.437
D166: итого | F166: =SUM(F159:F165) -> 431 | G166: =SUM(G159:G165) -> 30.68 | H166: 37.51 | I166: 191.12 | J166: 967.5 | L166: =SUM(L159:L165) -> 71.71
A167: =A159 -> 2 | B167: =B159 -> 3 | C167: Обед | D167: закуска
D168: 1 блюдо | E168: Суп картофельный с курицей | F168: 200 | G168: 2.42 | H168: 1.9 | I168: 5.21 | J168: 96.95 | K168: 33 | L168: 14.087
D169: 2 блюдо | E169: Гуляш из грудки курицы | F169: 79 | G169: 9.23 | H169: 8.77 | I169: 14.21 | J169: 232.85 | K169: 46 | L169: 18.383
D170: гарнир | E170: Каша гречневая расыпчатая | F170: 126 | G170: 11.44 | H170: 2.66 | I170: 8.98 | J170: 168.35 | K170: 9 | L170: 5.92
D171: напиток | E171: Сок фруктовый | F171: 200 | G171: 1.06 | H171: 0 | I171: 12.83 | J171: 85.11 | L171: 17
E172: Вафли | F172: 20 | G172: 0.82 | H172: 5.4 | I172: 12 | J172: 61.25 | L172: 5
D173: фрукты | E173: Груши | F173: 100 | G173: 0.4 | H173: 0.3 | I173: 10.3 | J173: 47 | L173: 9
D174: хлеб бел. | E174: Хлеб пшеничный | F174: 40 | G174: 3.92 | H174: 0.48 | I174: 19.88 | J174: 152.32 | L174: 2.32
D176: итого | F176: =SUM(F167:F175) -> 765 | G176: =SUM(G167:G175) -> 29.29 | H176: 19.51 | I176: 83.41 | J176: 843.83 | L176: =SUM(L167:L175) -> 71.71
A177: =A159 -> 2 | B177: =B159 -> 3 | C177: Итого за день: | F177: =F166+F176 -> 1196 | G177: =G166+G176 -> 59.97 | H177: =H166+H176 -> 57.02 | I177: =I166+I176 -> 274.53 | J177: =J166+J176 -> 1811.33 | L177: 143.42
A178: 2 | B178: 4 | C178: Завтрак | D178: гор.блюдо | E178: Плов с курицей | F178: 191 | G178: 22.06 | H178: 20.2 | I178: 22.57 | J178: 361.4 | K178: 4 | L178: 32.668
D179: закуска | E179: Салат из капусты с горошком | F179: 47 | G179: 1.11 | H179: 2.18 | I179: 3.15 | J179: 36.97 | K179: 43 | L179: 8.01
D180: напиток | E180: Сок фруктовый | F180: 200 | G180: 1.04 | H180: 0 | I180: 12.64 | J180: 83.83 | L180: 2.32
E181: Кексы | F181: 33.33 | G181: 0.1 | H181: 0.38 | I181: 6.01 | J181: 8.4 | L181: 1.862
D182: фрукты | E182: Яблоки | F182: 110 | G182: 0.49 | H182: 0.49 | I182: 12.03 | J182: 36.08 | L182: 9
D183: хлеб | E183: Хлеб пшеничный | F183: 40 | G183: 3.92 | H183: 0.48 | I183: 19.88 | J183: 152.32 | L183: 17.85
D185: итого | F185: =SUM(F178:F184) -> 621.33 | G185: =SUM(G178:G184) -> 28.72 | H185: 23.73 | I185: 76.28 | J185: 679 | L185: =SUM(L178:L184) -> 71.71
A186: =A178 -> 2 | B186: =B178 -> 4 | C186: Обед | D186: закуска
D187: 1 блюдо | E187: Суп фасолевый с овощами и курицей | F187: 200 | G187: 5.06 | H187: 0.64 | I187: 22.06 | J187: 108.68 | K187: 40 | L187: 32.2
D188: 2 блюдо | E188: Вареники со сметаной | F188: 100 | G188: 9.23 | H188: 8.77 | I188: 14.21 | J188: 232.85 | K188: 42 | L188: 21.66
D189: напиток | E189: Сок фруктовый | F189: 195 | G189: 1.06 | H189: 0 | I189: 12.83 | J189: 85.11 | L189: 2.32
E190: Мини рулеты (бисквитные) | F190: 35 | G190: 1.4 | H190: 6.65 | I190: 19.95 | J190: 147 | L190: 1.71
D191: хлеб бел. | E191: Хлеб пшеничный | F191: 40 | G191: 3.92 | H191: 0.48 | I191: 19.88 | J191: 152.32 | L191: 8.82
D192: фрукты | E192: Яблоки | F192: 90 | G192: 0.55 | H192: 0.55 | I192: 13.64 | J192: 40.92 | L192: 5
D195: итого | F195: =SUM(F186:F194) -> 660 | G195: =SUM(G186:G194) -> 21.22 | H195: 17.09 | I195: 102.57 | J195: 766.88 | L195: =SUM(L186:L194) -> 71.71
A196: =A178 -> 2 | B196: =B178 -> 4 | C196: Итого за день: | F196: =F185+F195 -> 1281.33 | G196: =G185+G195 -> 49.94 | H196: =H185+H195 -> 40.82 | I196: =I185+I195 -> 178.85 | J196: =J185+J195 -> 1445.88 | L196: 143.42
A197: 2 | B197: 5 | C197: Завтрак | D197: гор.блюдо | E197: Плов с курицей | F197: 225 | G197: 25.95 | H197: 23.76 | I197: 26.55 | J197: 425.18 | K197: 4 | L197: 21.3814
D198: хлеб | E198: Хлеб пшеничный | F198: 40 | G198: 3.92 | H198: 0.48 | I198: 19.88 | J198: 152.32 | L198: 2.32
D199: закуска | E199: Яйцо отварное | F199: 40 | G199: 5.08 | H199: 4.6 | I199: 0.28 | J199: 63 | K199: 8 | L199: 8.01
D200: напиток | E200: Сок осветленный | F200: 200 | G200: 1.06 | H200: 0 | I200: 12.83 | J200: 85.11 | L200: 17
E201: Кексы | F201: 33.33 | G201: 0.1 | H201: 0.38 | I201: 6.01 | J201: 8.4 | L201: 13.9986
D202: фрукты | E202: Яблоки | F202: 100 | G202: 0.55 | H202: 0.55 | I202: 13.64 | J202: 40.92 | L202: 9
D204: итого | F204: =SUM(F197:F203) -> 638.33 | G204: =SUM(G197:G203) -> 36.66 | H204: 29.77 | I204: 79.19 | J204: 774.93 | L204: =SUM(L197:L203) -> 71.71
A205: =A197 -> 2 | B205: =B197 -> 5 | C205: Обед | D205: закуска
D206: 1 блюдо | E206: Суп картофельный вегетарианский | F206: 200 | G206: 2.91 | H206: 2.29 | I206: 21.02 | J206: 116.39 | K206: 33 | L206: 3.657
D207: 2 блюдо | E207: Макароны отварные с говяжьей котлетой | F207: 125\45 | G207: 12.52 | H207: 11.7 | I207: 33.52 | J207: 132.5 | K207: 10 | L207: 38.833
D208: гарнир | E208: Хлеб пшеничный | F208: 40 | G208: 3.92 | H208: 0.48 | I208: 19.88 | J208: 152.32 | L208: 2.32
D209: напиток | E209: Сок осветленный | F209: 200 | G209: 1.06 | H209: 0 | I209: 12.83 | J209: 85.11 | L209: 17
D210: хлеб бел. | E210: Яблоки | F210: 95 | G210: 0.5 | H210: 0.5 | I210: 12.4 | J210: 37.2 | L210: 9.9
D211: хлеб черн.
D214: итого | F214: =SUM(F205:F213) -> 535 | G214: =SUM(G205:G213) -> 20.91 | H214: 14.97 | I214: 99.65 | J214: 523.52 | L214: =SUM(L205:L213) -> 71.71
A215: =A197 -> 2 | B215: =B197 -> 5 | C215: Итого за день: | F215: =F204+F214 -> 1173.33 | G215: =G204+G214 -> 57.57 | H215: =H204+H214 -> 44.74 | I215: =I204+I214 -> 178.84 | J215: =J204+J214 -> 1298.45 | L215: 143.42
A216: 2 | B216: 6 | C216: Завтрак | D216: гор.блюдо
D218: гор.напиток
D219: хлеб
D220: фрукты
D223: итого | F223: =SUM(F216:F222) -> 0 | G223: =SUM(G216:G222) -> 0 | H223: 0 | I223: 0 | J223: 0 | L223: =SUM(L216:L222) -> 0
A224: 2 | B224: =B216 -> 6 | C224: Обед | D224: закуска
D225: 1 блюдо | E225: Щи из свежей капусты с картофелем | F225: 250 | G225: 2 | H225: 5 | I225: 11 | J225: 100 | K225: 54 | L225: 4.167
D226: 2 блюдо | E226: Плов с курицей | F226: 225 | G226: 25.95 | H226: 23.76 | I226: 26.55 | J226: 425.18 | K226: 4 | L226: 21.373
D227: фрукты | E227: Яблоки | F227: 100 | G227: 0.55 | H227: 0.55 | I227: 13.64 | J227: 40.92 | L227: 9
D228: хлеб бел. | E228: Хлеб пшеничный | F228: 40 | G228: 3.92 | H228: 0.48 | I228: 19.88 | J228: 152.32 | L228: 2.32
D229: напиток | E229: Сок осветленный | F229: 200 | G229: 1.06 | H229: 0 | I229: 12.83 | J229: 85.11 | L229: 17
E230: Мини рулеты (бисквитные) | F230: 35 | G230: 1.4 | H230: 6.65 | I230: 19.95 | J230: 147 | L230: 17.85
D233: итого | F233: =SUM(F224:F232) -> 850 | G233: =SUM(G224:G232) -> 34.88 | H233: 36.44 | I233: 103.85 | J233: 950.53 | L233: =SUM(L224:L232) -> 71.71
B234: =B216 -> 6 | C234: Итого за день: | F234: =F223+F233 -> 850 | G234: =G223+G233 -> 34.88 | H234: 36.44 | I234: 103.85 | J234: 950.53 | L234: =L223+L233 -> 71.71
A235: 2 | C235: Среднее значение за период: | F235: =(F45+F64+F83+F102+F140+F159+F178+F197+#REF!+F234)/(IF(F45=0,0,1)+IF(F64=0,0,1)+IF(F83=0,0,1)+IF(F102=0,0,1)+IF(F140=0,0,1)+IF(F159=0,0,1)+IF(F178=0,0,1)+IF(F197=0,0,1)+IF(#REF!=0,0,1)+IF(F234=0,0,1)) ->  | G235: =(G45+G64+G83+G102+G140+G159+G178+G197+#REF!+G234)/(IF(G45=0,0,1)+IF(G64=0,0,1)+IF(G83=0,0,1)+IF(G102=0,0,1)+IF(G140=0,0,1)+IF(G159=0,0,1)+IF(G178=0,0,1)+IF(G197=0,0,1)+IF(#REF!=0,0,1)+IF(G234=0,0,1)) ->  | H235: =(H45+H64+H83+H102+H140+H159+H178+H197+#REF!+H234)/(IF(H45=0,0,1)+IF(H64=0,0,1)+IF(H83=0,0,1)+IF(H102=0,0,1)+IF(H140=0,0,1)+IF(H159=0,0,1)+IF(H178=0,0,1)+IF(H197=0,0,1)+IF(#REF!=0,0,1)+IF(H234=0,0,1)) ->  | I235: =(I45+I64+I83+I102+I140+I159+I178+I197+#REF!+I234)/(IF(I45=0,0,1)+IF(I64=0,0,1)+IF(I83=0,0,1)+IF(I102=0,0,1)+IF(I140=0,0,1)+IF(I159=0,0,1)+IF(I178=0,0,1)+IF(I197=0,0,1)+IF(#REF!=0,0,1)+IF(I234=0,0,1)) ->  | J235: =(J45+J64+J83+J102+J140+J159+J178+J197+#REF!+J234)/(IF(J45=0,0,1)+IF(J64=0,0,1)+IF(J83=0,0,1)+IF(J102=0,0,1)+IF(J140=0,0,1)+IF(J159=0,0,1)+IF(J178=0,0,1)+IF(J197=0,0,1)+IF(#REF!=0,0,1)+IF(J234=0,0,1)) ->  | L235: =(L45+L64+L83+L102+L140+L159+L178+L197+#REF!+L234)/(IF(L45=0,0,1)+IF(L64=0,0,1)+IF(L83=0,0,1)+IF(L102=0,0,1)+IF(L140=0,0,1)+IF(L159=0,0,1)+IF(L178=0,0,1)+IF(L197=0,0,1)+IF(#REF!=0,0,1)+IF(L234=0,0,1)) -> 
